Cogmind - Beta 16 @@@ ROGUE MODE // 2025.12.31 @ 17:40:07 Player: Compilatron Result: Destroyed by 9V-UIT(R) with Subdweller Laser Performance ------------- Evolutions (0) 0 Regions Visited (3) 600 Robots Destroyed (16) 80 Value Destroyed (405) 405 Prototype IDs (0) 0 Alien Tech Used (0) 0 Bonus (-40) -40 TOTAL SCORE: 1045 Bonus ------- Friendly Fire -40 Cogmind --------- Core Integrity 0/250 Matter 144/300 Energy 200/200 System Corruption 0% Temperature Cool (6) Movement Rolling (120) Ox1 Location -10/Subcaves Parts ------- > --- POWER (1) -------- Subdweller Power Source > --- PROPULSION (2) --- Light Treads Subdweller Monowheel > --- UTILITY (2) ------ Large Storage Unit > --- WEAPON (2) ------- Subdweller Laser > --- INVENTORY (15) --- Light Ion Engine Aluminum Leg Aluminum Leg Wheel Compact Wheel Improved Heat Sink Light Assault Rifle Grenade Launcher Subdweller Shrapnel Launcher Flamer Flamer Peak State ------------ > --- POWER ------------ Ion Engine > --- PROPULSION ------- Light Treads Compact Wheel > --- UTILITY ---------- Large Storage Unit Light Armor Plating > --- WEAPON ----------- Light Assault Rifle Rocket Launcher > --- INVENTORY -------- Light Ion Engine Light Treads Aluminum Leg Aluminum Leg Wheel Improved Heat Sink Grenade Launcher Mining Laser [Rating: 9] Favorites ----------- Power Ion Engine Engine Ion Engine Propulsion Light Treads Treads Light Treads Leg Aluminum Leg Wheel Compact Wheel Utility Large Storage Unit Storage Large Storage Unit Protection Light Armor Plating Weapon Light Assault Rifle Energy Gun EM Pulse Gun Ballistic Gun Light Assault Rifle Launcher Rocket Launcher Special Weapon Mining Laser Build | -11 -10 -10 -10 ------- Run | Yrd Mat Min Sub Slots Evolved . | . . . . Power . | . . . . Propulsion . | . . . . Utility . | . . . . Weapon . | . . . . Parts Attached 14 | . 4 4 6 Power 2 | . . . 2 Engine 2 | . . . 2 Core . | . . . . Reactor . | . . . . Propulsion 4 | . 2 1 1 Treads 2 | . 1 1 . Leg . | . . . . Wheel 2 | . 1 . 1 Hover . | . . . . Flight . | . . . . Utility 2 | . 1 1 . Device . | . . . . Storage 1 | . 1 . . Processor . | . . . . Hackware . | . . . . Protection 1 | . . 1 . Artifact . | . . . . Weapon 6 | . 1 2 3 Energy Gun 2 | . 1 . 1 Energy Cannon . | . . . . Ballistic Gun 1 | . . . 1 Ballistic Cannon . | . . . . Launcher 2 | . . 2 . Special Weapon 1 | . . . 1 Impact Weapon . | . . . . Slashing Weapon . | . . . . Piercing Weapon . | . . . . Special Melee Weapon . | . . . . Unidentified Prototypes . | . . . . Parts Lost 7 | . 2 1 4 Power 1 | . . . 1 Propulsion 1 | . . 1 . Utility 1 | . . . 1 Weapon 4 | . 2 . 2 Highest Loss Streak 2 | . 1 1 2 To Critical Strikes . | . . . . Average Backups 7 | . 6 7 7 Power . | . 1 1 . Propulsion 3 | . 4 3 3 Utility . | . . 1 1 Weapon 1 | . 1 1 2 Tool/Special . | . . . . Unused Backups 5 | . . . 5 Power . | . . . . Propulsion 2 | . . . 2 Utility 1 | . . . 1 Weapon 2 | . . . 2 Tool/Special . | . . . . Average Slot Usage (%) 80 | . 80 90 72 Engine 9 | . 14 14 4 Treads 13 | . 14 11 14 Wheel 13 | . 13 14 14 Storage 14 | . 14 14 14 Protection 3 | . . 8 1 Energy Gun 2 | . 9 . . Ballistic Gun 12 | . 14 14 10 Launcher 8 | . . 12 10 Peak Build Rating 9 | . 6 9 9 Average Rating 6 | . 5 7 6 On Entrance 6 | 6 6 6 8 Avg Prop Armor Cover (%) 13 | . 14 10 15 Naked Turns . | . . . . Heaviest Build 33 | 13 26 33 29 Greatest Support 20 | 20 16 16 20 Greatest Overweight (x) 2 | . 1 2 1 Average Overweight (x) 1 | . . 1 1 Largest Inventory Capacity 15 | . 15 15 15 Average Capacity 13 | . 8 15 15 Most Carried 11 | . 8 8 11 Average Carried 7 | . 6 7 7 Final Capacity 15 | 8 15 15 15 Final Carried 11 | 6 8 7 11 Class Distribution -------------------- 100% | Mutant Dominant Class ---------------- Mutant | -10/Materials Mutant | -10/Mines Mutant | -10/Subcaves Resources | -11 -10 -10 -10 ----------- Run | Yrd Mat Min Sub Matter Collected 477 | 188 73 39 177 Remotely . | . . . . Salvage Created 349 | . 295 54 . Parts 25 | . 17 8 . Haulers Intercepted . | . . . . Recyclers Shooed 2 | . 1 1 . Parts Field Recycled . | . . . . Retrieved Matter . | . . . . Parts Self-Destructed . | . . . . Prevented . | . . . . Parts Restored . | . . . . Kills | -11 -10 -10 -10 ------- Run | Yrd Mat Min Sub Combat Hostiles Destroyed 14 | . 7 5 2 Guns 8 | . 7 . 1 AOE 6 | . . 5 1 Classes Destroyed 6 | . 4 . 2 Worker 1 | . 1 . . Watcher 1 | . 1 . . Swarmer 6 | . 3 3 . Grunt 6 | . 4 2 . Sentry 1 | . . . 1 Subdweller 1 | . . . 1 Best Kill Streak 9 | . 9 3 1 Combat Bots Only 7 | . 7 3 1 Max Kills in Single Turn 2 | . 1 2 1 Gunslinging . | . . . . Exploded 2 | . . 2 1 Melee . | . . . . Uniques/NPCs Destroyed . | . . . . Combat | -11 -10 -10 -10 -------- Run | Yrd Mat Min Sub Hostile Shots Fired 102 | . 51 16 35 Missed 30 | . 19 5 6 Hits 72 | . 32 11 29 Projectile 72 | . 32 11 29 Critical Strikes 6 | . 3 . 3 Damage Taken 1002 | . 350 142 510 Core 250 | . 69 44 137 Absorbed by Shields . | . . . . Core Remaining (%) 100 | 100 . . . Volleys Fired 65 | . 26 12 27 Largest 2 | . 2 2 2 Hottest 100 | . 60 53 100 Shots Fired 98 | . 50 18 30 Gun 67 | . 50 6 11 Cannon . | . . . . Launcher 24 | . . 12 12 Special 7 | . . . 7 Kinetic 41 | . 26 6 9 Thermal 9 | . . . 9 Explosive 24 | . . 12 12 Electromagnetic 24 | . 24 . . Robot Hit Streak 6 | . 6 2 6 Robot Miss Streak 5 | . 5 4 2 Penetration Max . | . . . . Secondary Targets 2 | . 2 . . Max Gunslinging Chain 1 | . 1 . . Shots Hit Robots 49 | . 23 7 19 Core Hits 32 | . 17 8 7 Critical Kills 1 | . 1 . . Critical Parts Destroyed . | . . . . Critical Strikes 2 | . 2 . . Destroy 1 | . 1 . . Corrupt 1 | . 1 . . Melee Attacks . | . . . . Impact . | . . . . Slashing . | . . . . Piercing . | . . . . Sneak Attacks . | . . . . Combat Hostiles . | . . . . Follow-up Attacks . | . . . . Damage Inflicted 1248 | . 285 572 391 Guns 379 | . 285 25 69 Cannons . | . . . . Explosions 797 | . . 547 250 Melee . | . . . . Ramming . | . . . . Kinetic 177 | . 102 25 50 Thermal 91 | . . . 91 Explosive 797 | . . 547 250 Electromagnetic 183 | . 183 . . Impact . | . . . . Slashing . | . . . . Piercing . | . . . . Highest Corruption . | . . . . Average Corruption . | . . . . Corruption Purged . | . . . . Corruption Blocked . | . . . . Overload Shots . | . . . . Overflow Damage 35 | . . 35 . Projectiles . | . . . . Explosions 35 | . . 35 . Melee . | . . . . Knockbacks . | . . . . Impact . | . . . . Kinetic . | . . . . Secondary . | . . . . Self-Inflicted Damage 13 | . . 13 . Shots 1 | . . 1 . Rammed . | . . . . Targets Rammed . | . . . . Kicked . | . . . . Crushed . | . . . . Highest Temperature 145 | . 145 57 8 Average Temperature 47 | . 58 21 8 Received Heat Transfer 378 | . 159 54 165 Siege Activations . | . . . . Martial Activations . | . . . . Shielding Activations . | . . . . Robots Disrupted . | . . . . Combat Hostiles . | . . . . Robots Corrupted . | . . . . Combat Hostiles . | . . . . Parts Fried . | . . . . Impact Corruptions . | . . . . Robots Melted . | . . . . Combat Hostiles . | . . . . Parts Melted . | . . . . Heat Transferred 175 | . . . 175 Parts Sabotaged . | . . . . Parts Stolen . | . . . . Parts Stripped . | . . . . Power Chain Reactions . | . . . . Alert | -11 -10 -10 -10 ------- Run | Yrd Mat Min Sub Maximum Alert Level . | . . . . Low Security (%) 100 | . 100 100 . Level 1 . | . . . . Level 2 . | . . . . Level 3 . | . . . . Level 4 . | . . . . Level 5 . | . . . . High Security . | . . . . Max Security . | . . . . Peak Influence 187 | . 187 175 . Initial 64 | . . 64 . Average 105 | . 72 130 . Influence Increases 428 | . 227 181 20 Destroy 0b10 Robot/C 260 | . 140 100 20 Destroy 0b10 Robot/NC 10 | . 10 . . Destroy Leader 52 | . 32 20 . Destroy Structure 61 | . . 61 . Lose Combat Pursuer 45 | . 45 . . Influence Decreases 428 | . 60 213 155 Entered New Map 174 | . . 103 71 Time Decay 214 | . 50 100 64 Lost Part 40 | . 10 10 20 Squads Dispatched 1 | . 1 . . Investigation . | . . . . Extermination . | . . . . Reinforcement 1 | . 1 . . Assault . | . . . . Garrison . | . . . . Intercept . | . . . . Searches Triggered . | . . . . Construction Impeded . | . . . . Haulers Reinforced . | . . . . Active Scanning Responses . | . . . . Cargo Convoy Interrupts . | . . . . Stealth | -11 -10 -10 -10 --------- Run | Yrd Mat Min Sub Distress Signals 1 | . 1 . . Communications Jammed . | . . . . Distress Signals . | . . . . Times Spotted 23 | . 15 5 3 Peak Tracking Total 8 | . 8 3 2 Tactical Retreats 1 | . 1 . . Traps | -11 -10 -10 -10 ------- Run | Yrd Mat Min Sub Traps Triggered . | . . . . Indirectly . | . . . . Trap Hack Attempts . | . . . . Triggered . | . . . . Disarmed . | . . . . Reprogrammed . | . . . . Reused . | . . . . Traps Extracted . | . . . . Installed . | . . . . Triggered . | . . . . Machines | -11 -10 -10 -10 ---------- Run | Yrd Mat Min Sub Machines Disabled . | . . . . Max in Single Turn . | . . . . Machines Repaired . | . . . . Machines Dismantled . | . . . . Machines Sabotaged . | . . . . Overloaded Fab Kills . | . . . . Hacking | -11 -10 -10 -10 --------- Run | Yrd Mat Min Sub Machines Accessed 3 | . 2 1 . Terminals 2 | . 1 1 . Fabricators . | . . . . Repair Stations . | . . . . Recycling Units 1 | . 1 . . Scanalyzers . | . . . . Garrison Access . | . . . . Total Hacks 5 | . 3 2 . Successful 1 | . 1 . . Failed 4 | . 2 2 . Catastrophic 1 | . 1 . . Database Lockouts . | . . . . Manual 3 | . 1 2 . Terminals 4 | . 2 2 . Fabricators . | . . . . Repair Stations . | . . . . Recycling Units 1 | . 1 . . Scanalyzers . | . . . . Garrison Access . | . . . . Terminal Hacks 1 | . 1 . . Emergency Access Points 1 | . 1 . . Fabricator Hacks . | . . . . Repair Station Hacks . | . . . . Recycling Unit Hacks . | . . . . Scanalyzer . | . . . . Garrison Access Hacks . | . . . . Unauthorized Hacks . | . . . . Terminals . | . . . . Fabricators . | . . . . Repair Stations . | . . . . Recycling Units . | . . . . Scanalyzers . | . . . . Garrison Access . | . . . . Data Cores Recovered . | . . . . Used . | . . . . Hacking Detections 3 | . 2 1 . Full Trace Events 1 | . . 1 . Feedback Events . | . . . . Feedback Blocked . | . . . . Robot Schematics Acquired . | . . . . Robots Built . | . . . . Authchips . | . . . . Time . | . . . . Total Robot Build Rating . | . . . . Part Schematics Acquired . | . . . . Parts Built . | . . . . Authchips . | . . . . Time . | . . . . Total Part Build Rating . | . . . . Part Studies Acquired . | . . . . Parts Repaired . | . . . . Time . | . . . . Parts Recycled . | . . . . Recycled Matter . | . . . . Retrieved Matter . | . . . . Retrieved Components . | . . . . Parts Scanalyzed . | . . . . Part Schematics Acquired . | . . . . Parts Damaged . | . . . . Bothacking | -11 -10 -10 -10 ------------ Run | Yrd Mat Min Sub Used RIF Installer . | . . . . Robots Hacked . | . . . . Non-combat . | . . . . Combat . | . . . . Robot Hacks Applied . | . . . . Relay Couplers Released . | . . . . Fabnet Peak Effective % . | . . . . Robots Rewired . | . . . . Allies Hacked . | . . . . Hacks Repelled . | . . . . Allies | -11 -10 -10 -10 -------- Run | Yrd Mat Min Sub Total Allies . | . . . . Largest Group . | . . . . Highest-Rated Group . | . . . . Highest-Rated Ally . | . . . . Total Orders . | . . . . Ally Attacks . | . . . . Total Damage . | . . . . Kills . | . . . . Allies Corrupted . | . . . . Allies Melted . | . . . . Intel | -11 -10 -10 -10 ------- Run | Yrd Mat Min Sub Active Infowar (turns) . | . . . . Robot Analysis Total . | . . . . Derelict Logs Recovered 2 | . . 2 . Drone Launches . | . . . . Drone Recoveries . | . . . . Exploration | -11 -10 -10 -10 ------------- Run | Yrd Mat Min Sub Turns Passed 700 | . 163 219 318 Spaces Moved 419 | 1 81 148 189 Core . | . . . . Treads . | . . . . Legs 1 | 1 . . . Wheels 418 | . 81 148 189 Hover . | . . . . Flight . | . . . . Fastest Speed 100 | 120 100 115 115 Average Speed 116 | 120 102 123 116 Slowest Speed 130 | 120 115 130 120 Overloaded Moves . | . . . . Propulsion Burnouts . | . . . . Robots Hopped . | . . . . Potential Cave-ins . | . . . . Cave-ins Triggered . | . . . . Exploration Rate (%) 20 | 1 18 43 20 Regions Visited 3 Branch Regions 2 Pre-discovered Areas . | . . . . Known Exits Taken 1 | . . 1 . Unknown Exits Taken 2 | 1 1 . . Scrap Searched 5 | . . 1 4 Spaces Dug . | . . . . Terrain Destroyed 128 | . . 93 35 Melee . | . . . . Projectile . | . . . . AOE 128 | . . 93 35 Terrain Rammed . | . . . . Walls Destroyed . | . . . . Machines Disabled . | . . . . Actions | -11 -10 -10 -10 --------- Run | Yrd Mat Min Sub Total 524 | . 115 167 242 Wait 14 | . . 2 12 Move 416 | . 80 147 189 Hop . | . . . . Pick Up 12 | . 4 2 6 Fast Attach . | . . . . Attach 7 | . 2 3 2 Detach . | . . . . Swap 9 | . 2 1 6 Drop 1 | . 1 . . Fire 65 | . 26 12 27 Melee . | . . . . Ram . | . . . . Kick . | . . . . Crush . | . . . . Escape Stasis . | . . . . Rewire . | . . . . Trap . | . . . . Miscellaneous . | . . . . Route ------- -11/Scrapyard -10/Materials -10/Mines -10/Subcaves History --------- Turn | Location | Event 1 | -11/Scrapyard | Discovered new exit (range 0) 1 | -11/Scrapyard | Entered Materials 54 | -10/Materials | Discovered new exit (range 12) 152 | -10/Materials | Destroyed 7 combat bots 164 | -10/Materials | Entered Mines 174 | -10/Mines | Learned 2 Materials zone layouts 210 | -10/Mines | Assembled infested the area 241 | -10/Mines | Received a Rocket Launcher from a helpful Derelict 309 | -10/Mines | Build established: Mutant 355 | -10/Mines | Identified exit to Subcaves 383 | -10/Mines | Entered Subcaves 384 | -10/Subcaves | Approached by a straggling Scientist 399 | -10/Subcaves | Core integrity fell below 50% 499 | -10/Subcaves | A swath of the cavern ceiling suddenly collapsed 599 | -10/Subcaves | Disturbed a concealed Subdweller 618 | -10/Subcaves | Core integrity fell below 20% 674 | -10/Subcaves | Shifting Twisted Machinery released Flamer 674 | -10/Subcaves | Shifting Twisted Machinery released Sub. Power Source 697 | -10/Subcaves | A swath of the cavern ceiling suddenly collapsed 701 | -10/Subcaves | Destroyed by 9V-UIT(R) with Subdweller Laser Last Messages --------------- to Scrap Shield. 00615_ Mining Laser destroyed. 00621_ Subatomizers dissect the Sub. Monowheel. 00629_ 1I-FKC(R) destroyed. 00632_ Acquired Flamer. 00634_ Acquired Sub. Shrapnel Launcher. 00635_ Subatomizers dissect the Sub. Monowheel. 00636_ Acquired Sub. Monowheel. T7-RPM(c): "I think it's somewhere north of here" 00639_ Acquired Sub. Laser. Flamer falls loose from the Twisted Machinery. Sub. Power Source falls loose from the Twisted Machinery. 00679_ Acquired Sub. Power Source. 00687_ Acquired Flamer. T7-RPM(c): "I think it's somewhere north of here" A swath of the cavern ceiling suddenly collapses. Map ----- +----------------------------------------------------+ | ??????????????????????????????????????#""#""## # | | ????????????????????????????????????###" "" " # | | ????????????????????????????????????# " ###"## | | ???????????????????????????????????####"#?#"## | | ??????????????????????????????????#"## ##?##" | | ??????????##########???????????????#""##?# | | ?????????## ##?????????###### ##??# ### | | ?????????# #### #??????#### "## ##???###??# | | ?????????# ## "## ##??????# "#" ##?###?????# | | ?????????# # "# #???????# #""#?# #????? | | ?????????# #" #??????## # "## #????? | | ?????????# # "" # ######## ### ##???? | | ?????????# #### # ## #### ##??? | | ?????????## # ## #??? | | ??????????################# ### #??? | | ?????????????????????????## #?# #??? | | ?????????????????????????# #### ## ##??? | | ?????????????????????????# #?###?????? ? | | ?????????????????????????# ## #???????????? | | ?????????????????????????##### #######???????????? | | ????????????????????????###??# ##???????????????? | | ???????????????????????##;#### #???????????????? | | ???????????????????????#;;#;"# ""#???????????????? | | ???????????????????????##;;##"" #???????????????? | | ???????????????????????## ;### #??????????????? | | ???????????????????????##@#########??????????????? | | ????????????????????????# # #???????????????????? | | ????????????????????????; # " #??????????????????? | | ???????????????????????#;#""" "#?????????????????? | | ???????????????????????#;"#" ##?????????????????? | | ???????????????????????#; ###??????????????????? | | ???????????????????????#R ##????????????????????? | | ???????????????????????;; ##?????????????????????? | | ??????????????????????#;; ???????????????????????? | | ??????????????????????"## ???????????????????????? | | ??????????????????????# ????????????????????????? | | ??????????????????????" ?????????????????????????? | | ???????????????????????"?????????????????????????? | | ?????????????????????????????????????????????????? | | ?????????????????????????????????????????????????? | | ?????????????????????????????????????????????????? | | ?????????????????????????????????????????????????? | | ?????????????????????????????????????????????????? | | ?????????????????????????????????????????????????? | | ?????????????????????????????????????????????????? | | ?????????????????????????????????????????????????? | | ?????????????????????????????????????????????????? | | ?????????????????????????????????????????????????? | | ?????????????????????????????????????????????????? | | ?????????????????????????????????????????????????? | +----------------------------------------------------+ Best States ------------- Heat Dissipation 25 Energy Generation 15 Energy Capacity 250 Matter Stores 300 Matter Capacity 300 Sight Range 16 Terrain Scan Density 10 Armor Coverage 150 Evasion (%) 40 Item Schematics ----------------- None Robot Schematics ------------------ None Fabricated ------------ Nothing Repaired ---------- Nothing Studied --------- None Alien Tech Used ----------------- None Achievements -------------- None Challenges ------------ None Game ------ Seed LauncherFireRedistributor Manual? 0 Play Time 00:08:42 Cumulative 85.5 hours Start 2025.12.31 @ 17:33:53 End 2025.12.31 @ 17:40:07 Sessions 1 Manual Loads 0 Difficulty Rogue Special Mode None Game No. 139 Rogue 115 Adventurer 20 Explorer 4 Win Type - Total 1 Types 0/0/0/1/0/0/0/0/0/0 Lore% 55 Gallery% 45 Achievement% 36 Wizard Run 0 Options --------- Layout 1 ASCII 0 Keyboard 0 Movement Numpad Keybinds 0 Fullscreen 2 Font 24/Smallcaps Map View 50x35 Zoom Use 0% Tactical HUD 1 Map Filters NONE Filters NONE Steam 1 RUN: 7e855fa8-7ed2-410f-acc6-4f07c7ee240c